[Event "Torneo Nuevo Centro. Jornada 11"]
[Site "Chess.com"]
[Date "2020.08.28"]
[Round "3"]
[White "Garcia, Jhoel"]
[Black "Aguado, Pablo Luis"]
[Result "1-0"]
[WhiteElo "2384"]
[BlackElo "1932"]
[TimeControl "180+2"]
[EndTime "10:58:43 PDT"]
[Termination "Victoria de shoels por abandono"]

1. Nf3 {[%clk 0:03:01.9]} 1... d5 {[%clk 0:03:00.5]} 2. c4 {[%clk 0:03:02.6]}
2... e6 {[%clk 0:03:00.6]} 3. d4 {[%clk 0:03:03.2]} 3... Nf6 {[%clk 0:03:00.7]}
4. cxd5 {[%clk 0:03:01.9]} 4... exd5 {[%clk 0:03:01.4]} 5. Bg5 {[%clk
0:03:03.5]} 5... c6 {[%clk 0:03:00.5]} 6. Nc3 {[%clk 0:03:04]} 6... Bd6 {[%clk
0:02:57.1]} 7. e3 {[%clk 0:03:05.3]} 7... O-O {[%clk 0:02:58.1]} 8. Bd3 {[%clk
0:03:04.4]} 8... Re8 {[%clk 0:02:51.6]} 9. O-O {[%clk 0:03:02.2]} 9... Bg4
{[%clk 0:02:47.9]} 10. Rb1 {[%clk 0:02:59.9]} 10... a5 {[%clk 0:02:48]} 11. a3
{[%clk 0:02:58.7]} 11... Nbd7 {[%clk 0:02:43]} 12. h3 {[%clk 0:02:49.6]} 12...
Bh5 {[%clk 0:02:41.4]} 13. Be2 {[%clk 0:02:42.3]} 13... Qc7 {[%clk 0:02:38.6]}
14. Rc1 {[%clk 0:02:41.8]} 14... h6 {[%clk 0:02:32.4]} 15. Nb5 {[%clk 0:02:36]}
15... Qb8 {[%clk 0:02:14.3]} 16. Nxd6 {[%clk 0:02:34.5]} 16... Qxd6 {[%clk
0:02:16.2]} 17. Bf4 {[%clk 0:02:35.3]} 17... Qe7 {[%clk 0:02:11.4]} 18. Qb3
{[%clk 0:02:32.4]} 18... Nf8 {[%clk 0:02:04.9]} 19. Rfe1 {[%clk 0:02:31]} 19...
Ne4 {[%clk 0:02:05]} 20. Qc2 {[%clk 0:02:18.8]} 20... Ne6 {[%clk 0:02:02.9]} 21.
Bh2 {[%clk 0:02:18.9]} 21... Bxf3 {[%clk 0:01:58.9]} 22. Bxf3 {[%clk 0:02:20.8]}
22... N6g5 {[%clk 0:02:00.1]} 23. Be2 {[%clk 0:01:43.8]} 23... Nxf2 {[%clk
0:01:29.4]} 24. Bf1 {[%clk 0:01:33.9]} 24... Nfe4 {[%clk 0:01:03.6]} 25. Bd3
{[%clk 0:01:28.9]} 25... Qd7 {[%clk 0:00:54.4]} 26. Rf1 {[%clk 0:01:26.9]} 26...
Nf6 {[%clk 0:00:39.8]} 27. Rce1 {[%clk 0:01:21.3]} 27... Re7 {[%clk 0:00:38.1]}
28. Be5 {[%clk 0:01:18.8]} 28... Nfe4 {[%clk 0:00:36.3]} 29. Bh2 {[%clk
0:01:03.6]} 29... Rae8 {[%clk 0:00:35.2]} 30. Rf4 {[%clk 0:00:57]} 30... Nd6
{[%clk 0:00:30.9]} 31. h4 {[%clk 0:00:54.6]} 31... Ne6 {[%clk 0:00:21.1]} 32.
Rf3 {[%clk 0:00:51.4]} 32... Nf8 {[%clk 0:00:20]} 33. Be5 {[%clk 0:00:45.1]}
33... f6 {[%clk 0:00:17.4]} 34. Bf4 {[%clk 0:00:42.5]} 34... Ne4 {[%clk
0:00:18.5]} 35. Bh2 {[%clk 0:00:40]} 35... Qe6 {[%clk 0:00:14.6]} 36. Rf4 {[%clk
0:00:36.5]} 36... f5 {[%clk 0:00:14.2]} 37. Ref1 {[%clk 0:00:36.2]} 37... Rf7
{[%clk 0:00:14]} 38. g4 {[%clk 0:00:35.8]} 38... Ng6 {[%clk 0:00:14.8]} 39. gxf5
{[%clk 0:00:36]} 39... Qf6 {[%clk 0:00:12.2]} 40. fxg6 {[%clk 0:00:35.6]} 40...
Qxg6+ {[%clk 0:00:13.4]} 41. Qg2 {[%clk 0:00:37]} 41... Qe6 {[%clk 0:00:12.6]}
42. Rxf7 {[%clk 0:00:37.1]} 1

[Event "Torneo Nuevo Centro. Jornada 11"]
[Site "Chess.com"]
[Date "2020.08.28"]
[Round "3"]
[White "Carbonell Sancho, Marc"]
[Black "Gutierrez Marco, Dario"]
[Result "0-1"]
[WhiteElo "1849"]
[BlackElo "1835"]
[TimeControl "180+2"]
[EndTime "10:58:50 PDT"]
[Termination "Victoria de rususs por jaque mate"]

1. e4 {[%clk 0:03:01.6]} 1... c5 {[%clk 0:02:59.5]} 2. Nf3 {[%clk 0:03:02.7]}
2... e6 {[%clk 0:02:59.9]} 3. d4 {[%clk 0:03:03.7]} 3... cxd4 {[%clk 0:03:01.8]}
4. Nxd4 {[%clk 0:03:05.5]} 4... Nc6 {[%clk 0:03:03.2]} 5. Nb5 {[%clk 0:03:05.8]}
5... d6 {[%clk 0:03:02.9]} 6. c4 {[%clk 0:03:06.3]} 6... Nf6 {[%clk 0:03:01.4]}
7. N1c3 {[%clk 0:03:05.4]} 7... a6 {[%clk 0:03:02]} 8. Na3 {[%clk 0:03:05]} 8...
Be7 {[%clk 0:03:03.1]} 9. Be2 {[%clk 0:03:05.1]} 9... O-O {[%clk 0:03:03.4]} 10.
O-O {[%clk 0:03:06.2]} 10... b6 {[%clk 0:03:04.4]} 11. Be3 {[%clk 0:03:07.5]}
11... Qc7 {[%clk 0:02:58.5]} 12. Qd2 {[%clk 0:03:06.6]} 12... Bb7 {[%clk
0:02:54]} 13. f3 {[%clk 0:03:05.4]} 13... Rad8 {[%clk 0:02:41.9]} 14. Rac1
{[%clk 0:03:05.2]} 14... Nd7 {[%clk 0:02:38.1]} 15. Rfd1 {[%clk 0:03:03.7]}
15... Nc5 {[%clk 0:02:26]} 16. Nc2 {[%clk 0:03:03.4]} 16... Qb8 {[%clk
0:02:15.9]} 17. b4 {[%clk 0:03:00.7]} 17... Nd7 {[%clk 0:02:15.2]} 18. a3 {[%clk
0:02:57.7]} 18... Nce5 {[%clk 0:02:06.7]} 19. Nd4 {[%clk 0:02:55.5]} 19... Rc8
{[%clk 0:02:03.2]} 20. Na4 {[%clk 0:02:55.8]} 20... Rfd8 {[%clk 0:01:49.4]} 21.
Bf1 {[%clk 0:02:46.4]} 21... d5 {[%clk 0:01:27.7]} 22. cxd5 {[%clk 0:02:47.2]}
22... exd5 {[%clk 0:01:29.6]} 23. Rxc8 {[%clk 0:02:42.9]} 23... Qxc8 {[%clk
0:01:28.5]} 24. Nf5 {[%clk 0:02:43]} 24... Bf8 {[%clk 0:01:22.1]} 25. exd5
{[%clk 0:02:42.9]} 25... b5 {[%clk 0:01:22.1]} 26. Nb6 {[%clk 0:02:40.2]} 26...
Nxb6 {[%clk 0:01:22.6]} 27. Bxb6 {[%clk 0:02:42]} 27... Rxd5 {[%clk 0:01:20.4]}
28. Qe2 {[%clk 0:02:25.2]} 28... Rxd1 {[%clk 0:01:19.9]} 29. Qxd1 {[%clk
0:02:20.8]} 29... Qxf5 {[%clk 0:01:19.8]} 30. Qd8 {[%clk 0:02:18]} 30... Qd7
{[%clk 0:01:04.9]} 31. Qb8 {[%clk 0:02:16]} 31... Nc6 {[%clk 0:00:49.5]} 32. Qg3
{[%clk 0:02:13.8]} 32... g6 {[%clk 0:00:46.4]} 33. h4 {[%clk 0:02:11.2]} 33...
Bg7 {[%clk 0:00:44.4]} 34. Bc5 {[%clk 0:02:11.9]} 34... Bd4+ {[%clk 0:00:45.3]}
35. Kh1 {[%clk 0:02:11.4]} 35... Bxc5 {[%clk 0:00:46.1]} 36. bxc5 {[%clk
0:02:13.3]} 36... Ne7 {[%clk 0:00:41.2]} 37. h5 {[%clk 0:02:13.2]} 37... Nf5
{[%clk 0:00:42]} 38. Qf4 {[%clk 0:02:13.3]} 38... Qe7 {[%clk 0:00:34.4]} 39. Qb4
{[%clk 0:01:25.3]} 39... Qh4+ {[%clk 0:00:33.2]} 40. Kg1 {[%clk 0:01:24.7]}
40... Qxb4 {[%clk 0:00:33.8]} 41. axb4 {[%clk 0:01:26.6]} 41... gxh5 {[%clk
0:00:33.8]} 42. Bd3 {[%clk 0:01:27.9]} 42... Ne7 {[%clk 0:00:33.6]} 43. Kf2
{[%clk 0:01:27.8]} 43... Bd5 {[%clk 0:00:32.4]} 44. Ke3 {[%clk 0:01:27.5]} 44...
Nc6 {[%clk 0:00:32.8]} 45. Bf5 {[%clk 0:01:25.1]} 45... Nxb4 {[%clk 0:00:32.3]}
46. Kd4 {[%clk 0:01:22.2]} 46... a5 {[%clk 0:00:31.6]} 47. Ke5 {[%clk 0:01:23]}
47... a4 {[%clk 0:00:30.1]} 48. Bb1 {[%clk 0:01:21.1]} 48... a3 {[%clk
0:00:30.6]} 49. Kd6 {[%clk 0:01:22.2]} 49... a2 {[%clk 0:00:30.6]} 50. Bxa2
{[%clk 0:01:23.6]} 50... Bxa2 {[%clk 0:00:31.2]} 51. c6 {[%clk 0:01:25.5]} 51...
Nxc6 {[%clk 0:00:32.1]} 52. Kxc6 {[%clk 0:01:27]} 52... Bc4 {[%clk 0:00:34]} 53.
Kc5 {[%clk 0:01:28]} 53... Kg7 {[%clk 0:00:35.9]} 54. g3 {[%clk 0:01:29.3]}
54... Kf6 {[%clk 0:00:37.2]} 55. Kb4 {[%clk 0:01:30.4]} 55... Kg5 {[%clk
0:00:38.4]} 56. Kc3 {[%clk 0:01:32.3]} 56... h4 {[%clk 0:00:39.9]} 57. gxh4+
{[%clk 0:01:33.7]} 57... Kxh4 {[%clk 0:00:41.8]} 58. Kd4 {[%clk 0:01:35.6]}
58... Kg3 {[%clk 0:00:43.2]} 59. Ke3 {[%clk 0:01:37.5]} 59... h5 {[%clk
0:00:44.3]} 60. f4 {[%clk 0:01:39.4]} 60... h4 {[%clk 0:00:45.9]} 61. f5 {[%clk
0:01:41.3]} 61... h3 {[%clk 0:00:47.8]} 62. f6 {[%clk 0:01:42.8]} 62... h2
{[%clk 0:00:47.9]} 63. Kd2 {[%clk 0:01:44.2]} 63... h1=Q {[%clk 0:00:47.3]} 64.
Kc3 {[%clk 0:01:46.1]} 64... Qf3+ {[%clk 0:00:47.8]} 65. Kd4 {[%clk 0:01:46.9]}
65... Qd3+ {[%clk 0:00:48.4]} 66. Ke5 {[%clk 0:01:48.2]} 66... Qd5# {[%clk
0:00:49.2]} 0

[Event "Torneo Nuevo Centro. Jornada 11"]
[Site "Chess.com"]
[Date "2020.08.28"]
[Round "3"]
[White "Leal Uribe, Jhonny Alberto"]
[Black "Lloret Ramis, Juan José"]
[Result "0-1"]
[WhiteElo "2535"]
[BlackElo "1992"]
[TimeControl "180+2"]
[EndTime "10:59:15 PDT"]
[Termination "Victoria de Amiplim por tiempo"]

1. d4 {[%clk 0:03:01.9]} 1... d5 {[%clk 0:02:59.6]} 2. Nf3 {[%clk 0:03:03.8]}
2... e6 {[%clk 0:02:59.5]} 3. e3 {[%clk 0:03:05.3]} 3... Nf6 {[%clk 0:02:59.7]}
4. Bd3 {[%clk 0:03:06.4]} 4... c5 {[%clk 0:03:00.2]} 5. c3 {[%clk 0:03:07.1]}
5... Nc6 {[%clk 0:03:00.8]} 6. Nbd2 {[%clk 0:03:08.4]} 6... Bd6 {[%clk
0:03:00.3]} 7. O-O {[%clk 0:03:09.9]} 7... O-O {[%clk 0:03:01.3]} 8. dxc5 {[%clk
0:03:11.5]} 8... Bxc5 {[%clk 0:03:01.5]} 9. e4 {[%clk 0:03:13]} 9... e5 {[%clk
0:02:27.8]} 10. Qe2 {[%clk 0:03:10.9]} 10... d4 {[%clk 0:02:23.4]} 11. Nb3
{[%clk 0:03:10.5]} 11... Bb6 {[%clk 0:02:23.4]} 12. Bg5 {[%clk 0:03:11.7]} 12...
Bg4 {[%clk 0:02:08.1]} 13. Rfd1 {[%clk 0:03:11.4]} 13... dxc3 {[%clk 0:01:55.8]}
14. bxc3 {[%clk 0:03:11.9]} 14... Qe7 {[%clk 0:01:56.7]} 15. h3 {[%clk
0:03:10.9]} 15... Bh5 {[%clk 0:01:48.1]} 16. Bb5 {[%clk 0:03:06.9]} 16... Rac8
{[%clk 0:01:42]} 17. Rd2 {[%clk 0:02:49]} 17... a6 {[%clk 0:01:38.1]} 18. Bc4
{[%clk 0:02:40.8]} 18... Na5 {[%clk 0:01:27.8]} 19. Nxa5 {[%clk 0:02:32.2]}
19... Bxa5 {[%clk 0:01:29.7]} 20. Rc1 {[%clk 0:02:25.5]} 20... b5 {[%clk
0:01:26]} 21. Bd5 {[%clk 0:02:22.9]} 21... Rxc3 {[%clk 0:01:19.7]} 22. Rxc3
{[%clk 0:02:18.7]} 22... Bxc3 {[%clk 0:01:20.5]} 23. Rc2 {[%clk 0:02:20]} 23...
b4 {[%clk 0:01:15.2]} 24. Qxa6 {[%clk 0:02:15.3]} 24... Bxf3 {[%clk 0:01:14.7]}
25. gxf3 {[%clk 0:02:16.9]} 25... Qd7 {[%clk 0:00:40.5]} 26. Bxf6 {[%clk
0:02:08.5]} 26... gxf6 {[%clk 0:00:42.4]} 27. Kh2 {[%clk 0:02:00.7]} 27... Qe7
{[%clk 0:00:18.6]} 28. Rc1 {[%clk 0:01:58.1]} 28... h6 {[%clk 0:00:19.6]} 29. a4
{[%clk 0:01:50.5]} 29... Kh7 {[%clk 0:00:16.8]} 30. a5 {[%clk 0:01:45.6]} 30...
Bd4 {[%clk 0:00:17.8]} 31. Rc6 {[%clk 0:01:36.4]} 31... Bxf2 {[%clk 0:00:14.9]}
32. Rc8 {[%clk 0:01:16.6]} 32... Bh4 {[%clk 0:00:11]} 33. Rxf8 {[%clk
0:01:04.8]} 33... Qxf8 {[%clk 0:00:12.2]} 34. Qb7 {[%clk 0:01:06]} 34... Bg5
{[%clk 0:00:06.2]} 35. a6 {[%clk 0:00:52.7]} 35... Bf4+ {[%clk 0:00:06.9]} 36.
Kg2 {[%clk 0:00:50.1]} 36... b3 {[%clk 0:00:07.9]} 37. Bxb3 {[%clk 0:00:47.8]}
37... Qg7+ {[%clk 0:00:08.4]} 38. Kf1 {[%clk 0:00:47.9]} 38... Be3 {[%clk
0:00:05]} 39. Ke2 {[%clk 0:00:46.6]} 39... Bd4 {[%clk 0:00:05.1]} 0

[Event "Torneo Nuevo Centro. Jornada 11"]
[Site "Chess.com"]
[Date "2020.08.28"]
[Round "3"]
[White "Gutierrez Lacambra, Jose Antonio"]
[Black "Roca Cruz, Rafael"]
[Result "0-1"]
[WhiteElo "1380"]
[BlackElo "1797"]
[TimeControl "180+2"]
[EndTime "10:59:23 PDT"]
[Termination "Victoria de RafaRocaCruz por tiempo"]

1. d4 {[%clk 0:03:01.9]} 1... b5 {[%clk 0:03:00.8]} 2. Nf3 {[%clk 0:03:02.7]}
2... Bb7 {[%clk 0:03:01.9]} 3. Bf4 {[%clk 0:03:02.9]} 3... e6 {[%clk 0:03:02.2]}
4. e3 {[%clk 0:03:03]} 4... a6 {[%clk 0:03:03.3]} 5. Be2 {[%clk 0:02:53.9]} 5...
Nf6 {[%clk 0:03:04.2]} 6. h3 {[%clk 0:02:54.2]} 6... Be7 {[%clk 0:03:05.6]} 7.
O-O {[%clk 0:02:55]} 7... O-O {[%clk 0:03:07]} 8. Nbd2 {[%clk 0:02:55.9]} 8...
d6 {[%clk 0:03:08.4]} 9. c4 {[%clk 0:02:50]} 9... bxc4 {[%clk 0:03:09.4]} 10.
Nxc4 {[%clk 0:02:49.2]} 10... a5 {[%clk 0:03:10.3]} 11. b3 {[%clk 0:02:41]}
11... Nbd7 {[%clk 0:03:10.4]} 12. Rc1 {[%clk 0:02:37.6]} 12... Nb6 {[%clk
0:03:11.2]} 13. Qc2 {[%clk 0:02:35.4]} 13... Be4 {[%clk 0:03:09.6]} 14. Bd3
{[%clk 0:02:18]} 14... Bxd3 {[%clk 0:03:03.8]} 15. Qxd3 {[%clk 0:02:16.6]} 15...
Nbd5 {[%clk 0:03:05]} 16. Bh2 {[%clk 0:02:13.8]} 16... Nb4 {[%clk 0:03:05.9]}
17. Qc3 {[%clk 0:02:11.2]} 17... Nxa2 {[%clk 0:03:06.9]} 18. Qb2 {[%clk
0:02:09.3]} 18... Nxc1 {[%clk 0:03:07]} 19. Rxc1 {[%clk 0:02:10.4]} 19... Nd5
{[%clk 0:02:55.4]} 20. Qd2 {[%clk 0:01:54.6]} 20... Nb4 {[%clk 0:02:55.9]} 21.
e4 {[%clk 0:01:47.3]} 21... h6 {[%clk 0:02:47.9]} 22. Nxa5 {[%clk 0:01:46.4]}
22... Rxa5 {[%clk 0:02:23.3]} 23. Qxb4 {[%clk 0:01:45.1]} 23... c5 {[%clk
0:02:24.5]} 24. dxc5 {[%clk 0:01:31.4]} 24... Rxc5 {[%clk 0:02:24.9]} 25. Rd1
{[%clk 0:01:24.7]} 25... e5 {[%clk 0:02:05.6]} 26. Bxe5 {[%clk 0:00:47.5]} 26...
Rxe5 {[%clk 0:02:05.6]} 27. Nxe5 {[%clk 0:00:46.7]} 27... dxe5 {[%clk
0:02:06.4]} 28. Rxd8 {[%clk 0:00:35.6]} 28... Bxb4 {[%clk 0:02:06.7]} 29. Rxf8+
{[%clk 0:00:36.7]} 29... Kxf8 {[%clk 0:02:07]} 30. Kf1 {[%clk 0:00:36.8]} 30...
Ke7 {[%clk 0:02:08.2]} 31. Ke2 {[%clk 0:00:37.9]} 31... Bc5 {[%clk 0:02:08]} 32.
f3 {[%clk 0:00:38.3]} 32... Kd6 {[%clk 0:02:06.3]} 33. Kd3 {[%clk 0:00:39.1]}
33... Bf2 {[%clk 0:02:02.2]} 34. Kc4 {[%clk 0:00:39.1]} 34... Kc6 {[%clk
0:02:02.9]} 35. b4 {[%clk 0:00:38.9]} 35... h5 {[%clk 0:01:58.8]} 36. b5+ {[%clk
0:00:34]} 36... Kd6 {[%clk 0:01:59.3]} 37. g4 {[%clk 0:00:27.5]} 37... hxg4
{[%clk 0:01:53.2]} 38. hxg4 {[%clk 0:00:29.4]} 38... Be3 {[%clk 0:01:47]} 39.
Kb4 {[%clk 0:00:25.9]} 39... Bb6 {[%clk 0:01:47.3]} 40. Kc4 {[%clk 0:00:26.2]}
40... f6 {[%clk 0:01:44]} 41. Kb4 {[%clk 0:00:24.7]} 41... Bf2 {[%clk
0:00:56.9]} 42. Kc4 {[%clk 0:00:23.7]} 42... Be1 {[%clk 0:00:57.6]} 43. Kb3
{[%clk 0:00:10.1]} 43... Kc5 {[%clk 0:00:57.7]} 44. Ka4 {[%clk 0:00:11.1]} 44...
Bd2 {[%clk 0:00:53.6]} 45. Kb3 {[%clk 0:00:05.2]} 45... Kxb5 {[%clk 0:00:54.3]}
46. Kc2 {[%clk 0:00:06.2]} 46... Bf4 {[%clk 0:00:54.9]} 47. Kd3 {[%clk 0:00:07]}
47... Kc5 {[%clk 0:00:56]} 48. Kc3 {[%clk 0:00:07.1]} 48... Kb5 {[%clk
0:00:52.6]} 49. Kb3 {[%clk 0:00:06.8]} 49... Bd2 {[%clk 0:00:53.6]} 50. Kc2
{[%clk 0:00:05.6]} 50... Ba5 {[%clk 0:00:53.2]} 0

[Event "Torneo Nuevo Centro. Jornada 11"]
[Site "Chess.com"]
[Date "2020.08.28"]
[Round "3"]
[White "Bascuñana Sánchez, Pablo"]
[Black "Vidarte Morales, Arturo"]
[Result "0-1"]
[WhiteElo "1672"]
[BlackElo "2205"]
[TimeControl "180+2"]
[EndTime "10:59:23 PDT"]
[Termination "Victoria de Arturo_Vidarte por abandono"]

1. e4 {[%clk 0:03:01.9]} 1... c5 {[%clk 0:02:59.6]} 2. Nf3 {[%clk 0:03:01.6]}
2... e6 {[%clk 0:03:00.6]} 3. d4 {[%clk 0:03:00]} 3... cxd4 {[%clk 0:03:01]} 4.
Nxd4 {[%clk 0:03:01.6]} 4... a6 {[%clk 0:03:01.6]} 5. Bd3 {[%clk 0:02:58.9]}
5... Bc5 {[%clk 0:02:59.5]} 6. Be3 {[%clk 0:02:56.7]} 6... d6 {[%clk 0:02:53.3]}
7. f4 {[%clk 0:02:49.8]} 7... Nf6 {[%clk 0:02:49.6]} 8. O-O {[%clk 0:02:45.3]}
8... Qc7 {[%clk 0:02:45.4]} 9. Qe2 {[%clk 0:02:40.3]} 9... Nbd7 {[%clk
0:02:45.9]} 10. Nd2 {[%clk 0:02:38.6]} 10... b5 {[%clk 0:02:36.1]} 11. a3 {[%clk
0:02:17.6]} 11... Bb7 {[%clk 0:02:34.2]} 12. f5 {[%clk 0:02:11]} 12... e5 {[%clk
0:02:32.9]} 13. N4f3 {[%clk 0:02:05.1]} 13... O-O {[%clk 0:02:33]} 14. Bxc5
{[%clk 0:02:03.9]} 14... Nxc5 {[%clk 0:02:31.1]} 15. Rac1 {[%clk 0:01:56.5]}
15... Rfe8 {[%clk 0:02:17.4]} 16. b4 {[%clk 0:01:45.9]} 16... Ncd7 {[%clk
0:02:05.9]} 17. c4 {[%clk 0:01:43.9]} 17... bxc4 {[%clk 0:02:05.2]} 18. Rxc4
{[%clk 0:01:42]} 18... Qb6+ {[%clk 0:02:03.2]} 19. Kh1 {[%clk 0:01:40]} 19... d5
{[%clk 0:01:58.6]} 20. exd5 {[%clk 0:01:30.7]} 20... Bxd5 {[%clk 0:01:58.9]} 21.
Rh4 {[%clk 0:01:09.3]} 21... Rac8 {[%clk 0:01:46.2]} 22. Ne4 {[%clk 0:01:05.3]}
22... Bxe4 {[%clk 0:01:40.8]} 23. Bxe4 {[%clk 0:01:03.1]} 23... Rc3 {[%clk
0:01:41.9]} 24. Ra1 {[%clk 0:00:56.8]} 24... Re3 {[%clk 0:01:41.4]} 25. Qc4
{[%clk 0:00:49.7]} 25... h6 {[%clk 0:01:10.3]} 26. Bc2 {[%clk 0:00:35.2]} 26...
Qb5 {[%clk 0:00:51]} 27. Qxb5 {[%clk 0:00:27.2]} 27... axb5 {[%clk 0:00:51]} 28.
a4 {[%clk 0:00:24.4]} 28... Rc3 {[%clk 0:00:51.4]} 29. Bd1 {[%clk 0:00:21.1]}
29... bxa4 {[%clk 0:00:47]} 30. Bxa4 {[%clk 0:00:21.5]} 30... Rec8 {[%clk
0:00:46.5]} 31. h3 {[%clk 0:00:17.5]} 31... Nb6 {[%clk 0:00:38.1]} 32. Bb5
{[%clk 0:00:15.7]} 32... e4 {[%clk 0:00:37.5]} 33. Nd2 {[%clk 0:00:11.6]} 33...
Rc1+ {[%clk 0:00:38.4]} 34. Rxc1 {[%clk 0:00:11.6]} 34... Rxc1+ {[%clk
0:00:36.7]} 35. Kh2 {[%clk 0:00:13.1]} 35... e3 {[%clk 0:00:37.6]} 36. Nf3
{[%clk 0:00:08.8]} 36... Nbd5 {[%clk 0:00:36.2]} 37. Ba4 {[%clk 0:00:04.4]}
37... e2 {[%clk 0:00:34.3]} 38. g4 {[%clk 0:00:04.2]} 38... e1=Q {[%clk
0:00:31.6]} 39. Nxe1 {[%clk 0:00:04.5]} 39... Rxe1 {[%clk 0:00:31.9]} 40. b5
{[%clk 0:00:06]} 40... Rb1 {[%clk 0:00:31.4]} 41. Kg3 {[%clk 0:00:03.6]} 41...
Rb4 {[%clk 0:00:29.8]} 42. Bc2 {[%clk 0:00:02.9]} 42... Rxb5 {[%clk 0:00:29.3]}
43. Kf2 {[%clk 0:00:04.4]} 43... Rb2 {[%clk 0:00:28.9]} 44. Ke1 {[%clk
0:00:05.8]} 44... Rxc2 {[%clk 0:00:29.2]} 45. Rxh6 {[%clk 0:00:06.8]} 45... gxh6
{[%clk 0:00:27.8]} 46. g5 {[%clk 0:00:08.3]} 46... Ne4 {[%clk 0:00:28.1]} 0

[Event "Torneo Nuevo Centro. Jornada 11"]
[Site "Chess.com"]
[Date "2020.08.28"]
[Round "3"]
[White "Miranda Calvo, Max Rodrigo"]
[Black "Más Ripoll, Vicente"]
[Result "1-0"]
[WhiteElo "1305"]
[BlackElo "1065"]
[TimeControl "180+2"]
[EndTime "10:59:23 PDT"]
[Termination "Victoria de bas-max-miranda por tiempo"]

1. e4 {[%clk 0:03:01.9]} 1... c5 {[%clk 0:03:00.3]} 2. d4 {[%clk 0:03:01.4]}
2... cxd4 {[%clk 0:03:00.4]} 3. c3 {[%clk 0:03:02.6]} 3... dxc3 {[%clk
0:03:00.4]} 4. Nxc3 {[%clk 0:03:04.1]} 4... e6 {[%clk 0:03:01.7]} 5. Nf3 {[%clk
0:03:02.4]} 5... a6 {[%clk 0:03:02.7]} 6. e5 {[%clk 0:02:57.6]} 6... Bb4 {[%clk
0:02:59.8]} 7. Bd2 {[%clk 0:02:54.8]} 7... Nc6 {[%clk 0:02:59.8]} 8. Be2 {[%clk
0:02:49.2]} 8... Qc7 {[%clk 0:03:00.5]} 9. O-O {[%clk 0:02:41.2]} 9... Nxe5
{[%clk 0:02:55.2]} 10. Nxe5 {[%clk 0:02:41.4]} 10... Qxe5 {[%clk 0:02:55.5]} 11.
Re1 {[%clk 0:02:40.8]} 11... Qc7 {[%clk 0:02:47]} 12. Qc1 {[%clk 0:02:37.8]}
12... Nf6 {[%clk 0:02:43.6]} 13. Bf4 {[%clk 0:02:35.4]} 13... Qd8 {[%clk
0:02:34.3]} 14. a3 {[%clk 0:02:29.6]} 14... Ba5 {[%clk 0:02:28.7]} 15. b4 {[%clk
0:02:29.1]} 15... Bb6 {[%clk 0:02:29.3]} 16. Na4 {[%clk 0:02:27.9]} 16... Ba7
{[%clk 0:02:24.6]} 17. Be3 {[%clk 0:02:27.3]} 17... Bxe3 {[%clk 0:02:20]} 18.
Qxe3 {[%clk 0:02:25.8]} 18... O-O {[%clk 0:02:14.7]} 19. Nb6 {[%clk 0:02:22.8]}
19... Rb8 {[%clk 0:02:09.5]} 20. Qg3 {[%clk 0:02:14.7]} 20... d6 {[%clk
0:01:59.2]} 21. Nxc8 {[%clk 0:02:13.9]} 21... Rxc8 {[%clk 0:01:55.4]} 22. Red1
{[%clk 0:02:10.4]} 22... e5 {[%clk 0:01:28.5]} 23. Bf3 {[%clk 0:02:08.5]} 23...
Rc3 {[%clk 0:01:23.3]} 24. h3 {[%clk 0:01:34.2]} 24... Qc7 {[%clk 0:01:19.3]}
25. Qh2 {[%clk 0:01:33.7]} 25... Rc8 {[%clk 0:01:06]} 26. Be2 {[%clk 0:01:17.1]}
26... Rc2 {[%clk 0:00:59.3]} 27. Bd3 {[%clk 0:01:13.9]} 27... Rc3 {[%clk
0:00:49.4]} 28. Bf1 {[%clk 0:01:10.6]} 28... Qb6 {[%clk 0:00:43.3]} 29. Kh1
{[%clk 0:01:04.8]} 29... Qxf2 {[%clk 0:00:39.5]} 30. Qg1 {[%clk 0:00:57.5]}
30... Qxg1+ {[%clk 0:00:37]} 31. Kxg1 {[%clk 0:00:59]} 31... Ne4 {[%clk
0:00:36.1]} 32. Bd3 {[%clk 0:00:55.1]} 32... Ng3 {[%clk 0:00:31.6]} 33. Kh2
{[%clk 0:00:47.4]} 33... e4 {[%clk 0:00:25.9]} 34. Bb1 {[%clk 0:00:30.2]} 34...
f5 {[%clk 0:00:14.9]} 35. a4 {[%clk 0:00:20]} 35... Nh5 {[%clk 0:00:11.2]} 36.
b5 {[%clk 0:00:17.3]} 36... axb5 {[%clk 0:00:10.8]} 37. axb5 {[%clk 0:00:18.7]}
37... Rc1 {[%clk 0:00:10.4]} 38. Ba2+ {[%clk 0:00:19.4]} 38... Kf8 {[%clk
0:00:07.2]} 39. Rdxc1 {[%clk 0:00:20.2]} 39... Ra8 {[%clk 0:00:07.1]} 40. Bd5
{[%clk 0:00:16.6]} 40... Nf6 {[%clk 0:00:07]} 41. Rxa8+ {[%clk 0:00:11.2]} 41...
Ke7 {[%clk 0:00:05]} 42. Bxb7 {[%clk 0:00:12.6]} 1